bitfinex-derivatives/quotes_BTCF0:USTF0_20240905
["timestamp","ask_amount","ask_price","bid_price","bid_amount"]
[1725563898650,0.007,56342.0,56341.0,0.438758]
[1725563899157,0.008,56342.0,56341.0,0.35]
[1725563899449,0.008,56342.0,56339.0,0.3608]
[1725563899840,0.088763,56338.0,56335.0,0.00026631]
[1725563900142,0.002,56336.0,56335.0,0.00026631]
[1725563900846,0.002,56336.0,56335.0,0.08903431]
[1725563901152,0.002,56336.0,56335.0,0.09103431]
[1725563901549,0.002,56336.0,56335.0,0.09303431]
[1725563901750,0.002,56336.0,56335.0,0.09103431]
[1725563902450,0.090766,56336.0,56335.0,0.00226631]
[1725563902649,0.090766,56336.0,56335.0,0.00026631]
[1725563902852,0.091766,56336.0,56335.0,0.00026631]
[1725563903544,0.093766,56336.0,56335.0,0.00026631]
[1725563904656,0.181532,56336.0,56335.0,0.00026631]
[1725563904951,0.183532,56336.0,56335.0,0.00026631]
[1725563907247,0.19362478,56336.0,56335.0,0.00026631]
[1725563908150,0.64319078,56336.0,56335.0,0.00026631]
[1725563908354,0.55442478,56336.0,56335.0,0.00026631]
[1725563908761,0.266313,56333.0,56332.0,0.004]
[1725563908951,0.618313,56333.0,56332.0,0.004]
[1725563909254,1.218313,56333.0,56332.0,0.004]
[1725563910160,0.268313,56333.0,56332.0,0.004]
[1725563910459,0.268313,56333.0,56332.0,0.006]
[1725563910954,0.868313,56333.0,56332.0,0.008]
[1725563911150,0.268313,56333.0,56332.0,0.008]
[1725563911350,0.868313,56333.0,56332.0,0.008]
[1725563911650,0.268313,56333.0,56332.0,0.008]
[1725563911850,0.868313,56333.0,56332.0,0.008]
[1725563912055,0.090771,56333.0,56332.0,0.008]
[1725563912259,0.090771,56333.0,56332.0,0.096772]
[1725563912758,0.451571,56333.0,56332.0,0.008]
[1725563913060,0.629113,56333.0,56332.0,0.008]
[1725563919258,0.540342,56333.0,56332.0,0.008]
[1725563919664,0.629113,56333.0,56332.0,0.006]
[1725563919870,0.635113,56333.0,56332.0,0.007]
[1725563920358,0.635113,56333.0,56332.0,0.006]
[1725563920563,0.649113,56333.0,56332.0,0.006]
[1725563921054,1.065571,56333.0,56332.0,0.001]
[1725563921360,0.088793,56319.0,56318.0,0.0041]
[1725563921567,0.088799,56315.0,56314.0,0.088799]
[1725563921767,0.092799,56315.0,56314.0,0.088799]
[1725563922060,0.088804,56312.0,56311.0,0.05316943]
[1725563922268,0.088805,56311.0,56310.0,0.14197643]
[1725563922453,0.092805,56311.0,56310.0,0.088807]
[1725563923151,0.088807,56310.0,56309.0,0.05310276]
[1725563923351,0.088809,56309.0,56308.0,0.05310276]
[1725563923556,0.088809,56309.0,56305.0,0.14191676]
[1725563923557,0.004,56309.0,56305.0,0.14191676]
[1725563923762,0.004,56306.0,56303.0,0.05310276]
[1725563923960,0.004,56304.0,56301.0,0.05310276]
[1725563924261,0.088821,56301.0,56300.0,0.14192476]
[1725563924467,0.092821,56301.0,56300.0,0.14192476]
[1725563924655,0.092821,56301.0,56300.0,0.05310276]
[1725563924964,0.092821,56301.0,56297.0,0.450667]
[1725563925161,0.004,56301.0,56298.0,0.28]
[1725563925365,0.005,56301.0,56300.0,0.014]
[1725563925868,0.001,56301.0,56300.0,0.102823]
[1725563926265,0.002,56301.0,56300.0,0.102823]
[1725563926665,0.002,56301.0,56300.0,0.702823]
[1725563926866,0.004,56309.0,56306.0,0.088813]
[1725563927165,0.004,56309.0,56308.0,0.36881]
[1725563928772,0.005,56309.0,56308.0,0.37581]
[1725563928958,0.006,56309.0,56308.0,0.37581]
[1725563929572,0.006,56309.0,56308.0,0.38281]
[1725563929866,0.0041,56320.0,56312.0,0.088804]
[1725563930169,0.3842,56330.0,56312.0,0.818408]
[1725563930170,0.0041,56324.0,56312.0,0.818408]
[1725563931168,0.0041,56324.0,56323.0,0.088786]
[1725563931363,0.088777,56329.0,56323.0,0.088786]
[1725563931364,0.01035884,56326.0,56323.0,0.3608]
[1725563931669,0.088777,56329.0,56323.0,0.3608]
[1725563931869,0.088777,56329.0,56324.0,0.05310276]
[1725563932064,0.088779,56328.0,56324.0,0.05310276]
[1725563932456,0.088777,56329.0,56324.0,0.14188776]
[1725563932659,0.01,56326.0,56324.0,0.14188776]
[1725563933263,0.099779,56328.0,56324.0,0.14288776]
[1725563933569,0.099779,56328.0,56325.0,0.088783]
[1725563934471,0.007,56326.0,56325.0,0.088783]
[1725563934769,0.018,56326.0,56325.0,0.088783]
[1725563935073,0.011,56326.0,56325.0,0.089783]
[1725563935269,0.095779,56328.0,56325.0,0.089783]
[1725563935462,0.107779,56328.0,56325.0,0.090783]
[1725563935967,0.095779,56328.0,56325.0,0.089783]
[1725563936164,0.012,56326.0,56325.0,0.090783]
[1725563936561,0.088779,56328.0,56325.0,0.088783]
[1725563936767,0.008,56326.0,56325.0,0.090783]
[1725563937572,0.012,56328.0,56327.0,0.08878]
[1725563937874,0.02,56328.0,56327.0,0.08878]
[1725563938374,0.108779,56328.0,56327.0,0.08878]
[1725563938673,0.096779,56328.0,56327.0,0.08878]
[1725563939265,0.088782,56327.0,56325.0,0.05410276]
[1725563939466,0.004,56326.0,56325.0,0.05410276]
[1725563939874,0.004,56326.0,56325.0,0.001]
[1725563940069,0.004,56326.0,56325.0,0.089782]
[1725563940278,0.379782,56326.0,56325.0,0.001]
[1725563940869,0.379782,56326.0,56323.0,0.3608]
[1725563940870,0.088785,56324.0,56323.0,0.449586]
[1725563941075,0.092785,56324.0,56323.0,0.449586]
[1725563942392,0.092785,56324.0,56323.0,0.3608]
[1725563943376,0.096785,56324.0,56323.0,0.3608]
[1725563943581,0.088788,56322.0,56321.0,0.00026631]
[1725563943779,0.461576,56322.0,56321.0,0.00026631]
[1725563945076,1.155364,56322.0,56321.0,0.00026631]
[1725563945278,1.21906959,56322.0,56321.0,0.00026631]
[1725563945679,1.22206959,56322.0,56321.0,0.00026631]
[1725563945883,1.158364,56322.0,56321.0,0.00026631]
[1725563946175,1.069576,56322.0,56321.0,0.00026631]
[1725563946379,1.074576,56322.0,56321.0,0.00126631]
[1725563946587,1.069576,56322.0,56321.0,0.00126631]
[1725563946775,1.076576,56322.0,56321.0,0.00226631]
[1725563947370,1.17571584,56322.0,56321.0,0.00226631]
[1725563949778,0.57571584,56322.0,56321.0,0.00226631]
[1725563949979,0.48692784,56322.0,56321.0,0.00226631]
[1725563950777,1.08692784,56322.0,56321.0,0.00226631]
[1725563951291,1.17571584,56322.0,56321.0,0.00226631]
[1725563951587,0.57571584,56322.0,56321.0,0.00226631]
[1725563952174,0.088805,56311.0,56310.0,0.0041]
[1725563952393,0.088805,56311.0,56309.0,0.092908]
[1725563952394,0.088807,56310.0,56309.0,0.088808]
[1725563952580,0.090807,56310.0,56309.0,0.088808]
[1725563954078,0.091807,56310.0,56309.0,0.094808]
[1725563954388,0.10205237,56310.0,56309.0,0.100808]
[1725563954973,0.19085937,56310.0,56309.0,0.012]
[1725563956284,0.10205237,56310.0,56309.0,0.100809]
[1725563956487,0.003,56310.0,56309.0,0.100809]
[1725563957382,0.003,56310.0,56309.0,0.380809]
[1725563957587,0.003,56310.0,56309.0,0.469618]
[1725563958689,0.003,56310.0,56309.0,0.380809]
[1725563959691,0.003,56310.0,56309.0,0.100809]
[1725563959988,0.003,56310.0,56309.0,0.380809]
[1725563960185,0.003,56310.0,56309.0,1.069618]
[1725563960581,0.003,56310.0,56309.0,0.469618]
[1725563961388,0.00026631,56315.0,56309.0,0.469618]
[1725563961389,0.0048,56328.0,56321.0,0.08879]
[1725563961583,0.088783,56325.0,56321.0,0.002]
[1725563961781,0.088783,56325.0,56324.0,0.002]
[1725563962086,0.64172,56331.0,56324.0,0.002]
[1725563962287,0.138375,56330.0,56329.0,0.002]
[1725563963279,0.149375,56330.0,56329.0,0.002]
[1725563963487,0.099775,56330.0,56329.0,0.002]
[1725563963983,0.10986662,56330.0,56329.0,0.002]
[1725563964585,0.10986662,56330.0,56329.0,0.003]
[1725563964586,0.11786662,56330.0,56329.0,0.003]
[1725563965893,0.19564162,56330.0,56329.0,0.003]
[1725563966099,0.19664162,56330.0,56329.0,0.003]
[1725563966292,0.20464162,56330.0,56329.0,0.004]
[1725563966493,0.19564162,56330.0,56329.0,0.003]
[1725563966694,0.20464162,56330.0,56329.0,0.004]
[1725563967794,0.19664162,56330.0,56329.0,0.003]
[1725563967990,0.20464162,56330.0,56329.0,0.004]
[1725563969395,0.20464162,56330.0,56329.0,0.003]
[1725563969598,0.20464162,56330.0,56329.0,0.004]
[1725563970192,0.26933489,56330.0,56329.0,0.004]
[1725563970498,0.20564162,56330.0,56329.0,0.004]
[1725563970798,0.20464162,56330.0,56329.0,0.004]
[1725563972492,0.20564162,56330.0,56329.0,0.004]
[1725563972688,0.29441662,56330.0,56329.0,0.004]
[1725563972894,0.35811571,56330.0,56329.0,0.004]
[1725563973197,0.28641662,56330.0,56329.0,0.003]
[1725563973399,0.29441662,56330.0,56329.0,0.004]
[1725563974202,0.35811491,56330.0,56329.0,0.004]
[1725563974392,0.29441662,56330.0,56329.0,0.004]
[1725563975792,0.177576,56322.0,56321.0,0.00226631]
[1725563975994,0.909164,56322.0,56321.0,0.00226631]
[1725563976205,0.595664,56322.0,56321.0,0.00226631]
[1725563976500,0.506876,56322.0,56321.0,0.00226631]
[1725563977101,0.506876,56322.0,56321.0,0.00026631]
[1725563977302,0.507876,56322.0,56321.0,0.00026631]
[1725563977995,0.508876,56322.0,56321.0,0.00026631]
[1725563979909,0.51901022,56322.0,56321.0,0.00026631]
[1725563981207,1.11901022,56322.0,56321.0,0.00026631]
[1725563982094,0.177618,56309.0,56308.0,0.0161]
[1725563982294,0.459618,56309.0,56308.0,0.012]
[1725563983305,0.460618,56309.0,56308.0,0.025]
[1725563983994,0.461618,56309.0,56308.0,0.038]
[1725563984705,0.511418,56309.0,56308.0,0.038]
[1725563985006,0.600227,56309.0,56308.0,0.038]
[1725563987103,0.6106449,56309.0,56308.0,0.038]
[1725563990104,0.5608449,56309.0,56308.0,0.038]
[1725563990306,0.1032269,56309.0,56308.0,0.12681]
[1725563994309,0.1032269,56309.0,56308.0,0.038]
[1725563994310,0.4720359,56309.0,56308.0,0.038]
[1725563996015,0.3832269,56309.0,56308.0,0.038]
[1725563996910,0.1032269,56309.0,56308.0,0.038]
[1725563997115,0.1032269,56309.0,56308.0,0.12681]
[1725563997319,0.1032269,56309.0,56308.0,0.038]
[1725563997613,0.3832269,56309.0,56308.0,0.038]
[1725563997813,0.1032269,56309.0,56308.0,0.038]
[1725563998016,0.3832269,56309.0,56308.0,0.038]
[1725563999412,0.4720359,56309.0,56308.0,0.038]
[1725563999817,0.3832269,56309.0,56308.0,0.038]
[1725564000511,0.4720359,56309.0,56308.0,0.038]
[1725564000819,1.1608449,56309.0,56297.0,0.05310276]
[1725564001012,0.088831,56295.0,56294.0,0.0956]
[1725564001319,0.004,56295.0,56294.0,0.545232]
[1725564001618,0.004,56295.0,56294.0,1.145232]
[1725564002517,0.006,56295.0,56294.0,1.23594685]
[1725564003218,0.006,56295.0,56294.0,1.165232]
[1725564004116,0.006,56295.0,56294.0,0.565232]
[1725564004617,0.006,56295.0,56294.0,0.63613523]
[1725564004813,0.006,56295.0,56294.0,0.565232]
[1725564005516,0.006,56295.0,56294.0,0.63613523]
[1725564006120,0.006,56295.0,56294.0,1.165232]
[1725564006511,0.00026631,56300.0,56299.0,0.088824]
[1725564006816,0.00026631,56300.0,56299.0,0.80056662]
[1725564007121,0.00026631,56300.0,56299.0,1.329624]
[1725564007420,0.00026631,56300.0,56299.0,1.41801756]
[1725564007717,0.00026631,56300.0,56299.0,0.729624]
[1725564007718,0.00126631,56300.0,56299.0,0.729624]
[1725564008311,0.00126631,56300.0,56299.0,1.329624]
[1725564008815,0.0041,56312.0,56311.0,0.088805]
[1725564009021,0.088785,56324.0,56311.0,1.1369466]
[1725564009211,0.088785,56324.0,56323.0,0.3608]
[1725564009407,0.37880392,56324.0,56321.0,0.07094485]
[1725564009613,0.088794,56318.0,56316.0,0.05319245]
[1725564009814,0.088798,56316.0,56315.0,0.05319245]
[1725564010021,0.088802,56313.0,56312.0,1.57194485]
[1725564010216,0.092802,56313.0,56312.0,1.57094485]
[1725564010422,0.177608,56312.0,56311.0,0.00026631]
[1725564010712,0.589108,56312.0,56311.0,0.00026631]
[1725564012122,0.591108,56312.0,56311.0,0.00026631]
[1725564012309,0.593108,56312.0,56311.0,0.00026631]
[1725564013909,0.681912,56312.0,56311.0,0.00026631]
[1725564016525,1.281912,56312.0,56311.0,0.00026631]
[1725564017726,0.681912,56312.0,56311.0,0.00026631]
[1725564017914,1.281912,56312.0,56311.0,0.00026631]
[1725564018115,0.681912,56312.0,56311.0,0.00026631]
[1725564021924,0.504304,56312.0,56311.0,0.00026631]
[1725564022120,0.3688,56312.0,56311.0,0.00026631]
[1725564022324,0.008,56312.0,56311.0,0.36106631]
[1725564023211,0.096804,56312.0,56311.0,0.00026631]
[1725564023521,0.272412,56312.0,56311.0,0.00226631]
[1725564023723,0.920612,56312.0,56311.0,0.00226631]
[1725564024223,0.322612,56312.0,56311.0,0.00026631]
[1725564024423,0.320612,56312.0,56311.0,0.00426631]
[1725564025128,0.322612,56312.0,56311.0,0.00026631]
[1725564027417,0.322612,56312.0,56311.0,0.00226631]
[1725564027927,0.088828,56297.0,56296.0,0.0041]
[1725564028124,0.088828,56297.0,56294.0,0.14603967]
[1725564028125,0.002,56297.0,56294.0,0.14603967]
[1725564028319,0.002,56295.0,56294.0,0.092832]
[1725564028522,0.002,56297.0,56294.0,0.092832]
[1725564028822,0.090828,56297.0,56296.0,0.002]
[1725564029029,0.090828,56297.0,56294.0,0.004]
[1725564029030,0.088831,56295.0,56294.0,0.004]
[1725564029218,0.179662,56295.0,56294.0,0.004]
[1725564030132,0.179662,56295.0,56294.0,0.006]
[1725564030426,0.179662,56295.0,56294.0,0.004]
[1725564030625,0.180662,56295.0,56294.0,0.006]
[1725564031213,0.269493,56295.0,56294.0,0.006]
[1725564031420,0.270493,56295.0,56294.0,0.013]
[1725564031921,0.692831,56295.0,56281.0,0.0041]
[1725564032120,0.692831,56295.0,56273.0,0.28]
[1725564032121,0.088856,56279.0,56278.0,0.3608]
[1725564032327,0.092856,56279.0,56278.0,0.3608]
[1725564033826,0.093856,56279.0,56278.0,0.3628]
[1725564035529,0.094856,56279.0,56278.0,0.3628]
[1725564037430,0.094856,56279.0,56278.0,0.002]
[1725564037725,0.552568,56279.0,56278.0,0.002]
[1725564038727,0.551568,56279.0,56278.0,0.002]
[1725564039437,1.2448,56279.0,56266.0,0.05307237]
[1725564039731,1.2448,56279.0,56264.0,0.0041]
[1725564039732,0.088878,56265.0,56264.0,0.0041]
[1725564039939,0.088878,56265.0,56261.0,0.05307237]
[1725564039940,0.004,56265.0,56261.0,0.088884]
[1725564040128,0.004,56265.0,56260.0,0.05307237]
[1725564040129,0.088884,56261.0,56260.0,0.05307237]
[1725564040328,0.092884,56261.0,56260.0,0.05307237]
[1725564040523,0.092884,56261.0,56259.0,0.3608]
[1725564040720,0.372886,56260.0,56259.0,0.3608]
[1725564040920,0.284,56260.0,56259.0,0.3608]
[1725564041230,0.284,56260.0,56255.0,0.0489]
[1725564041231,0.088892,56256.0,56255.0,0.0489]
[1725564041422,0.088906,56247.0,56246.0,0.05717237]
[1725564041627,0.368908,56247.0,56244.0,0.05307237]
[1725564041833,0.28,56247.0,56245.0,0.088909]
[1725564042040,0.088908,56246.0,56241.0,0.09837237]
[1725564042224,0.088908,56246.0,56240.0,0.449717]
[1725564042225,0.004,56242.0,56240.0,0.05298806]
[1725564042533,0.004,56241.0,56236.0,0.4061]
[1725564042730,0.004,56242.0,56238.0,0.0467]
[1725564042938,0.004,56242.0,56240.0,0.088918]
[1725564043129,0.004,56242.0,56241.0,0.449716]
[1725564043334,0.005,56242.0,56241.0,0.449716]
[1725564043932,0.006,56242.0,56241.0,0.449716]
[1725564044439,0.0041,56251.0,56250.0,0.088902]
[1725564044742,0.00026656,56252.0,56250.0,0.3608]
[1725564045537,0.00026656,56252.0,56250.0,0.1498]
[1725564045940,0.00026656,56252.0,56250.0,0.238701]
[1725564046130,0.00026656,56252.0,56250.0,0.239701]
[1725564046332,0.00026656,56252.0,56251.0,0.0889]
[1725564047944,0.00026656,56252.0,56250.0,0.1518]
[1725564048135,0.004,56251.0,56250.0,0.1518]
[1725564048338,0.004,56251.0,56250.0,0.240702]
[1725564048534,0.004,56251.0,56250.0,0.519702]
[1725564048730,0.004,56251.0,56250.0,0.518702]
[1725564049034,0.004,56251.0,56250.0,0.238702]
[1725564049543,0.00026656,56252.0,56251.0,0.0889]
[1725564050842,0.00126656,56252.0,56251.0,0.0899]
[1725564051736,0.37016556,56252.0,56251.0,0.001]
[1725564052137,0.28026656,56252.0,56247.0,0.088906]
[1725564052340,0.282,56248.0,56245.0,0.008]
[1725564052540,0.090908,56246.0,56245.0,0.008]
[1725564052940,0.088908,56246.0,56245.0,0.008]
[1725564053540,0.088908,56246.0,56245.0,0.009]
[1725564053845,0.09899196,56246.0,56245.0,0.009]
[1725564054031,0.18789996,56246.0,56245.0,0.009]
[1725564054235,0.088922,56237.0,56236.0,0.3221]
[1725564054434,0.28,56237.0,56231.0,0.3608]
[1725564054643,0.004,56232.0,56231.0,0.449732]
[1725564055537,0.004,56232.0,56231.0,0.450732]
[1725564055845,0.004,56232.0,56231.0,0.451732]
[1725564057344,0.004,56232.0,56231.0,1.051732]
[1725564057543,0.28026656,56240.0,56232.0,0.08893]
[1725564057754,0.28,56237.0,56233.0,0.1417733]
[1725564058136,0.088925,56235.0,56233.0,0.1417733]
[1725564058446,0.088927,56234.0,56233.0,0.0528443]
[1725564058649,0.088927,56234.0,56231.0,0.43810657]
[1725564058948,0.004,56232.0,56231.0,0.52611857]
[1725564059349,0.088927,56234.0,56231.0,0.5902666]
[1725564059546,0.088927,56234.0,56233.0,0.08812423]
[1725564059851,0.088927,56234.0,56233.0,0.22365883]
[1725564060147,0.088927,56234.0,56233.0,0.58445883]
[1725564060737,0.088927,56234.0,56233.0,0.4963346]
[1725564060945,0.090927,56234.0,56233.0,0.4963346]
[1725564061135,0.090927,56234.0,56233.0,0.3608]
[1725564061334,0.090927,56234.0,56233.0,0.22370412]
[1725564061335,0.909581,56234.0,56233.0,0.22370412]
[1725564061540,0.26679,56232.0,56231.0,0.004]
[1725564061743,0.26679,56232.0,56231.0,0.07456725]
[1725564061949,0.26679,56232.0,56231.0,0.0745682]
[1725564062146,0.18186,56232.0,56231.0,0.0745682]
[1725564062465,0.09293,56232.0,56231.0,0.004]
[1725564062658,0.004,56232.0,56231.0,0.004]
[1725564062847,0.005,56232.0,56231.0,0.13954847]
[1725564063752,0.005,56232.0,56231.0,0.50848047]
[1725564064054,0.005,56232.0,56231.0,0.33406033]
[1725564064240,0.005,56232.0,56231.0,0.61406033]
[1725564064436,0.005,56232.0,56231.0,1.27345505]
[1725564064845,0.004,56232.0,56231.0,1.27445505]
[1725564065750,0.00026656,56240.0,56239.0,0.088919]
[1725564065952,0.00026656,56240.0,56239.0,0.22646747]
[1725564066343,0.00026656,56240.0,56239.0,0.33244046]
[1725564066639,0.00026656,56240.0,56239.0,0.22646747]
[1725564066847,0.00726656,56240.0,56239.0,0.22646747]
[1725564067347,0.36918456,56240.0,56239.0,0.002]
[1725564067947,0.08918456,56240.0,56239.0,0.090919]
[1725564068248,0.09618456,56240.0,56239.0,0.090919]
[1725564068642,0.09618456,56240.0,56239.0,0.002]
[1725564068842,0.09518456,56240.0,56239.0,0.002]
[1725564069551,0.08918456,56240.0,56239.0,0.002]
[1725564069755,0.37518456,56240.0,56239.0,0.002]
[1725564069963,0.37518456,56240.0,56239.0,0.07286355]
[1725564070254,0.37718456,56240.0,56239.0,0.07286355]
[1725564070559,0.37718456,56240.0,56239.0,0.07288678]
[1725564070750,0.42458456,56240.0,56239.0,0.07288678]
[1725564071052,0.41958456,56240.0,56239.0,0.07288678]
[1725564071357,0.51450256,56240.0,56239.0,0.002]
[1725564072147,0.51550256,56240.0,56239.0,0.002]
[1725564072347,0.51550256,56240.0,56239.0,0.07289478]
[1725564072654,0.51750256,56240.0,56239.0,0.002]
[1725564072954,0.01226656,56240.0,56239.0,0.690919]
[1725564073152,0.01626656,56240.0,56239.0,0.82643615]
[1725564073454,0.01626656,56240.0,56239.0,1.32515515]
[1725564073455,0.00046656,56240.0,56239.0,1.32515515]
[1725564073955,0.0514,56251.0,56250.0,0.088902]
[1725564073956,0.0041,56251.0,56250.0,0.088902]
[1725564074253,0.3608,56257.0,56250.0,0.002]
[1725564074254,0.088896,56254.0,56250.0,0.002]
[1725564074443,0.29852233,56257.0,56253.0,0.10831296]
[1725564074646,0.28,56254.0,56253.0,0.10831296]
[1725564074851,0.28,56254.0,56253.0,0.24381523]
[1725564075244,0.368895,56254.0,56253.0,0.13750227]
[1725564075443,0.380895,56254.0,56253.0,0.24381314]
[1725564075644,0.380895,56254.0,56253.0,0.13750227]
[1725564076160,0.368895,56254.0,56253.0,0.13750227]
[1725564076458,0.375895,56254.0,56253.0,0.24382333]
[1725564076754,0.377895,56254.0,56253.0,0.13750227]
[1725564077150,0.375895,56254.0,56253.0,0.13750227]
[1725564077346,0.379895,56254.0,56253.0,0.13750227]
[1725564078059,0.46679,56254.0,56253.0,0.13750227]
[1725564078358,0.555685,56254.0,56253.0,0.002]
[1725564078548,0.555685,56254.0,56248.0,0.00026656]
[1725564078549,1.2498,56254.0,56248.0,0.08889466]
[1725564078747,1.2498,56254.0,56248.0,0.00026656]
[1725564078748,0.907509,56249.0,56248.0,0.00026656]
[1725564078958,0.909509,56249.0,56248.0,0.00026656]
[1725564079948,0.909509,56249.0,56248.0,0.2244193]
[1725564080152,1.509509,56249.0,56248.0,0.00026656]
[1725564080351,1.521509,56249.0,56248.0,0.00126656]
[1725564080846,1.509509,56249.0,56248.0,0.00026656]
[1725564081043,1.520509,56249.0,56248.0,0.00226656]
[1725564081245,0.932509,56249.0,56248.0,0.00226656]
[1725564081452,0.932509,56249.0,56248.0,0.13779041]
[1725564081661,0.932509,56249.0,56248.0,0.09100914]
[1725564081849,0.920509,56249.0,56248.0,0.22553321]
[1725564082050,0.934509,56249.0,56248.0,0.22653321]
[1725564082345,0.94462329,56249.0,56248.0,0.00226656]
[1725564082753,0.94262329,56249.0,56248.0,0.00226656]
[1725564083059,0.94462329,56249.0,56248.0,0.00226656]
[1725564083451,0.93162329,56249.0,56248.0,0.00126656]
[1725564083652,0.94562329,56249.0,56248.0,0.00226656]
[1725564084970,0.94762329,56249.0,56248.0,0.00226656]
[1725564085256,0.177842,56238.0,56237.0,0.0041]
[1725564085460,0.6428,56238.0,56231.0,0.004]
[1725564085656,0.6408,56232.0,56231.0,0.004]
[1725564085859,0.90959,56232.0,56231.0,0.004]
[1725564086058,0.90959,56232.0,56217.0,0.0041]
[1725564086059,0.088951,56219.0,56217.0,0.0041]
[1725564086253,0.088954,56217.0,56216.0,0.3608]
[1725564086455,0.088963,56211.0,56208.0,0.3608]
[1725564086654,0.08897,56207.0,56203.0,0.3221]
[1725564086957,0.08897,56207.0,56194.0,0.00104]
[1725564086958,0.002,56204.0,56194.0,0.00104]
[1725564087155,0.08897,56207.0,56193.0,0.3608]
[1725564087156,0.28,56195.0,56193.0,0.3608]
[1725564087358,0.28,56195.0,56186.0,0.05715617]
[1725564087359,0.282,56195.0,56186.0,0.0472]
[1725564087556,0.449778,56202.0,56186.0,0.0472]
[1725564087557,0.002,56187.0,56186.0,0.0472]
[1725564087862,0.28,56191.0,56186.0,0.0472]
[1725564088051,0.002,56194.0,56190.0,0.3628]
[1725564088253,0.002,56194.0,56193.0,0.088992]
[1725564088963,0.002,56194.0,56192.0,0.3608]
[1725564089262,0.002,56193.0,56190.0,0.009]
[1725564089454,0.370995,56191.0,56190.0,0.009]
[1725564089965,0.370995,56191.0,56190.0,0.07264983]
[1725564090259,0.731795,56191.0,56190.0,0.002]
[1725564090461,0.731795,56191.0,56190.0,0.05493226]
[1725564090660,0.731795,56191.0,56190.0,0.002]
[1725564091162,0.451795,56191.0,56176.0,0.05703104]
[1725564091461,0.451795,56191.0,56160.0,0.3608]
[1725564091462,0.089025,56172.0,56170.0,0.0041]
[1725564091764,0.00226682,56177.0,56167.0,0.3608]
[1725564091967,0.00226682,56177.0,56176.0,0.002]
[1725564092160,0.00226682,56177.0,56172.0,0.41363902]
[1725564092161,0.3608,56183.0,56173.0,0.05283902]
[1725564092361,0.3608,56183.0,56172.0,0.3608]
[1725564092362,0.002,56174.0,56172.0,0.41363902]
[1725564092662,0.002,56174.0,56167.0,0.3608]
[1725564092663,0.091023,56174.0,56170.0,0.05283902]
[1725564092966,0.002,56171.0,56170.0,0.05283902]
[1725564093161,0.002,56171.0,56169.0,0.05283902]
[1725564093350,0.002,56170.0,56169.0,0.06283902]
[1725564093553,0.002,56170.0,56169.0,0.01]
[1725564093554,0.091028,56170.0,56169.0,0.01]
[1725564094459,0.9628,56170.0,56155.0,0.05693902]
[1725564094654,0.004,56156.0,56151.0,0.05283902]
[1725564094862,0.004,56152.0,56151.0,0.14189702]
[1725564095069,0.31132617,56158.0,56155.0,0.089052]
[1725564095264,0.31132617,56158.0,56151.0,0.004]
[1725564095465,0.004,56152.0,56151.0,0.004]
[1725564096770,0.004,56152.0,56145.0,0.04083902]
[1725564097068,0.004,56146.0,56145.0,0.04083902]
[1725564097267,0.004,56146.0,56143.0,0.0456]
[1725564097474,0.004,56144.0,56133.0,0.00904221]
[1725564097771,0.004,56142.0,56138.0,0.089079]
[1725564098071,0.004,56144.0,56138.0,0.089079]
[1725564098268,0.3648,56144.0,56131.0,0.02227645]
[1725564098461,0.004,56144.0,56142.0,0.089073]
[1725564098956,0.004,56144.0,56140.0,0.3608]
[1725564099155,0.354,56141.0,56132.0,0.0486]
[1725564099361,0.004,56136.0,56131.0,0.02227645]
[1725564099568,0.35,56137.0,56131.0,0.02227645]
[1725564101456,0.803889,56132.0,56131.0,0.02227645]
[1725564101658,0.803889,56132.0,56114.0,0.0048]
[1725564101659,0.089109,56119.0,56118.0,0.05568263]
[1725564101853,0.7108,56119.0,56104.0,0.3649]
[1725564102067,0.35,56111.0,56107.0,0.36176]
[1725564102269,0.35,56111.0,56095.0,0.0041]
[1725564102270,0.453927,56108.0,56095.0,0.0041]
[1725564102455,0.453927,56108.0,56098.0,0.3608]
[1725564102456,0.35,56104.0,56098.0,0.3608]
[1725564102660,0.0002673,56107.0,56106.0,0.08913]
[1725564103164,0.004,56119.0,56106.0,0.95]
[1725564103466,0.004,56119.0,56115.0,0.3608]
[1725564103668,0.004,56119.0,56117.0,0.089112]
[1725564104366,0.29157577,56122.0,56117.0,0.089112]
[1725564104668,0.0002673,56124.0,56117.0,0.093112]
[1725564104669,0.001,56119.0,56117.0,0.093112]
[1725564104854,0.001,56119.0,56117.0,0.004]
[1725564105269,0.35,56118.0,56117.0,0.004]
[1725564105563,0.7108,56118.0,56117.0,0.004]
[1725564106968,0.7108,56118.0,56112.0,0.0002673]
[1725564106969,0.089119,56113.0,56112.0,0.0002673]
[1725564107171,0.089119,56113.0,56095.0,0.0048]
[1725564107172,0.089139,56100.0,56095.0,0.0048]
[1725564107374,0.089139,56100.0,56084.0,0.0465]
[1725564107375,0.7148,56099.0,56085.0,0.0041]
[1725564107563,0.7148,56099.0,56077.0,0.08874258]
[1725564107564,0.089163,56085.0,56079.0,0.089172]
[1725564107863,0.354,56080.0,56079.0,0.3608]
[1725564108071,0.439171,56080.0,56079.0,0.3608]
[1725564108259,0.439171,56080.0,56069.0,0.0041]
[1725564108260,0.089187,56070.0,56069.0,0.0041]
[1725564108455,0.089187,56070.0,56056.0,0.3608]
[1725564108456,0.3608,56070.0,56056.0,0.3608]
[1725564108661,0.004,56057.0,56056.0,0.3608]
[1725564109262,0.004,56057.0,56050.0,0.3608]
[1725564109568,0.004,56051.0,56050.0,0.3608]